lending/lending_fUSD_20251125
["ID","MTS","AMOUNT","RATE_DAILY","PERIOD"]
[394874777,1764045082868,-633.22098863,0.00039726,8]
[394874778,1764045082877,-313.29697055,0.00039726,8]
[394874779,1764045082888,-500.0,0.00039726,8]
[394874780,1764045082898,-513.22,0.00039726,8]
[394874781,1764045082908,-500.0,0.00039726,8]
[394874782,1764045082919,-500.0,0.00039726,8]
[394874783,1764045082928,-500.0,0.00039726,8]
[394874784,1764045082939,-644.29425527,0.00039726,8]
[394874785,1764045082948,-500.0,0.00039726,8]
[394874786,1764045082962,-687.91,0.00039726,8]
[394874787,1764045082972,-500.0,0.00039726,8]
[394874788,1764045082981,-500.0,0.00039726,8]
[394874789,1764045082990,-500.0,0.00039726,8]
[394874790,1764045083000,-500.0,0.00039726,8]
[394874791,1764045083010,-500.0,0.00039726,8]
[394874792,1764045083020,-500.0,0.00039726,8]
[394874793,1764045083030,-631.36861553,0.00039726,8]
[394874794,1764045083040,-500.0,0.00039726,8]
[394874795,1764045083050,-500.0,0.00039726,120]
[394874796,1764045083062,-500.0,0.00039726,8]
[394874797,1764045083072,-500.0,0.00039726,8]
[394874798,1764045083082,-422.46879748,0.00039726,8]
[394874799,1764045083091,-500.0,0.00039726,8]
[394874800,1764045083101,-500.0,0.00039726,8]
[394874801,1764045083112,-500.0,0.00039726,8]
[394874802,1764045083125,-500.0,0.00039726,8]
[394874803,1764045083135,-500.0,0.00039726,8]
[394874804,1764045083145,-500.0,0.00039726,8]
[394874805,1764045083155,-500.0,0.00039726,8]
[394874806,1764045083169,-500.0,0.00039726,8]
[394874807,1764045083180,-500.0,0.00039726,8]
[394874808,1764045083190,-199.07142452,0.00039726,8]
[394874809,1764045083200,-291.11945528,0.00039726,8]
[394874810,1764045083211,-500.0,0.00039726,8]
[394874811,1764045083221,-500.0,0.00039726,8]
[394874812,1764045083231,-500.0,0.00039726,8]
[394874813,1764045083241,-305.55239232,0.00039726,8]
[394874814,1764045083251,-500.0,0.00039726,8]
[394874815,1764045083261,-258.57765685,0.00039726,8]
[394874816,1764045083271,-500.0,0.00039726,8]
[394874817,1764045083448,-500.0,0.00039726,8]
[394874818,1764045083459,-500.0,0.00039726,8]
[394874819,1764045083469,-619.08099121,0.00039726,8]
[394874820,1764045083480,-509.62185856,0.00039726,8]
[394874821,1764045083489,-150.0,0.00039757,7]
[394874822,1764045083498,-150.0,0.00039757,7]
[394874823,1764045083512,-161.30607602,0.00039765,7]
[394874824,1764045083521,-500.02,0.000398,60]
[394874825,1764045083531,-150.0,0.00039815,7]
[394874826,1764045083540,-3618.13283122,0.0003988,7]
[394874827,1764045083550,-150.0,0.00039893,7]
[394874828,1764045083560,-150.0,0.00039962,7]
[394874829,1764045083569,-109062.33939664,0.0004,3]
[394874830,1764045083582,-541.90514706,0.0004,3]
[394874831,1764045083593,-1068.85464755,0.0004,3]
[394874832,1764045083605,-1174.910634,0.0004,3]
[394874833,1764045083616,-3302.97586189,0.0004,3]
[394874834,1764045083628,-2663.13677486,0.0004,3]
[394874835,1764045083673,-238.09565631,0.00016489,2]
[394874836,1764045083682,-281.18352895,0.00016888,2]
[394874837,1764045083695,-151.0,0.00024658,7]
[394874838,1764045083717,-151.0,0.00024658,7]
[394874839,1764045083734,-151.0,0.00024658,7]
[394874840,1764045083744,-151.0,0.00024658,7]
[394874841,1764045083754,-4339.07945674,0.0004,3]
[394874842,1764045083769,-500.0,0.00038356,8]
[394874843,1764045083780,-0.63720293,0.00038356,8]
[394874844,1764045083790,-1599.36279707,0.0004,3]
[394874845,1764045083807,-151.0,0.00024658,7]
[394874846,1764045083818,-355.80835,0.0004,3]
[394874973,1764045707026,-1135.925,0.00015011,2]
[394874974,1764045707054,-166.697,0.00015011,2]
[394874976,1764045737830,-187.0,0.00015,2]
[394875013,1764046063022,-177.93324077,0.00015235,2]
[394875014,1764046063043,-151.0,0.00015308,2]
[394875015,1764046063065,-151.0,0.00015308,2]
[394875016,1764046063088,-151.0,0.00015308,2]
[394875017,1764046063108,-151.0,0.00015308,2]
[394875018,1764046063128,-151.0,0.00015308,2]
[394875019,1764046063149,-151.0,0.00015308,2]
[394875020,1764046063168,-216.0,0.00015313,2]
[394875021,1764046063188,-250.0,0.00015314,2]
[394875022,1764046063209,-300.0,0.00015315,2]
[394875023,1764046063229,-1200.0,0.00015316,2]
[394875024,1764046063249,-1200.0,0.00015316,2]
[394875025,1764046063272,-154.0,0.00015316,2]
[394875026,1764046063292,-500.0,0.00015316,2]
[394875027,1764046063312,-175.9039319,0.00015316,2]
[394875028,1764046063335,-500.16282733,0.00015317,2]
[394875068,1764046232113,-225.82172399,0.00015235,2]
[394875069,1764046232123,-250.0,0.00015276,2]
[394875070,1764046232132,-500.0,0.00015316,2]
[394875071,1764046232142,-508.80460913,0.00015316,2]
[394875072,1764046232151,-593.25,0.00015617,2]
[394875073,1764046232160,-300.0,0.00016757,2]
[394875074,1764046232169,-233.0,0.00016757,2]
[394875075,1764046232179,-300.0,0.00016759,2]
[394875076,1764046232189,-300.0,0.00016759,2]
[394875077,1764046232198,-300.0,0.00016759,2]
[394875078,1764046232208,-300.0,0.00016759,2]
[394875079,1764046232217,-300.0,0.00016759,2]
[394875080,1764046232226,-250.0,0.00016759,2]
[394875081,1764046232236,-7923.98918405,0.00016841,2]
[394875082,1764046232247,-2207.03081595,0.00016841,2]
[394875083,1764046232257,-9999.99,0.00016841,2]
[394875084,1764046232266,-9959.61,0.00016841,2]
[394875085,1764046232275,-150.99,0.00016841,2]
[394875086,1764046232284,-9999.99,0.00016841,2]
[394875087,1764046232293,-150.99,0.00016841,2]
[394875088,1764046232303,-169.06272754,0.00016873,2]
[394875089,1764046232311,-150.0,0.00017405,2]
[394875090,1764046232320,-500.44416206,0.00017873,2]
[394875091,1764046232329,-500.87228972,0.00017873,2]
[394875092,1764046232338,-500.0,0.00017873,2]
[394875093,1764046232347,-225.82172397,0.00018195,2]
[394875094,1764046232356,-420.0,0.00018307,2]
[394875096,1764046232365,-507.50957658,0.00018421,2]
[394875098,1764046232375,-159.96289996,0.00018967,2]
[394875100,1764046232383,-161.36222955,0.00018967,2]
[394875101,1764046232392,-500.0,0.00018967,2]
[394875103,1764046232401,-500.0,0.00018967,2]
[394875105,1764046232410,-500.0,0.00018967,2]
[394875107,1764046232418,-500.0,0.00018967,2]
[394875109,1764046232427,-506.01644165,0.00018967,2]
[394875111,1764046232436,-500.0,0.00018967,2]
[394875113,1764046232445,-500.0,0.00018967,2]
[394875115,1764046232455,-1409.5572868,0.00019,2]
[394875117,1764046232464,-501.58261206,0.000192,2]
[394875118,1764046232473,-587.0,0.00020001,2]
[394875119,1764046232482,-280.51224371,0.0002013,2]
[394875120,1764046232491,-166.66,0.00020416,2]
[394875121,1764046232506,-2751.0,0.00020578,2]
[394875122,1764046232515,-1000.0,0.00021003,2]
[394875123,1764046232526,-1863.12,0.00021067,2]
[394875124,1764046232535,-166.66,0.0002109,2]
[394875125,1764046232546,-225.82172397,0.00021155,2]
[394875126,1764046232555,-1841.927,0.00021561,2]
[394875127,1764046232564,-580.476,0.00021561,2]
[394875129,1764046232574,-1602.0,0.00021561,2]
[394875131,1764046232584,-823.0,0.00021561,2]
[394875133,1764046232594,-1192.0,0.00021561,2]
[394875134,1764046232604,-605.017,0.00021561,2]
[394875135,1764046232613,-2715.0,0.00021561,2]
[394875136,1764046232623,-561.0,0.00021561,2]
[394875137,1764046232632,-166.66,0.00021764,2]
[394875138,1764046232641,-1000.0,0.00021791,2]
[394875139,1764046232651,-823.0,0.00021851,2]
[394875140,1764046232660,-5000.0,0.00021918,2]
[394875141,1764046232669,-427.01065334,0.00022116,2]
[394875142,1764046232678,-500.0,0.0002235,2]
[394875143,1764046232687,-166.66,0.00022438,2]
[394875144,1764046232696,-530.35,0.00022562,2]
[394875145,1764046232706,-1000.0,0.00022578,2]
[394875146,1764046232715,-1000.0,0.00022898,2]
[394875147,1764046232724,-166.66,0.00023112,2]
[394875148,1764046232733,-1000.0,0.00023366,2]
[394875149,1764046232743,-376.26535312,0.00023446,2]
[394875150,1764046232752,-166.66,0.00023786,2]
[394875151,1764046232761,-1152.0,0.00023872,2]
[394875152,1764046232771,-225.82172397,0.00024114,2]
[394875153,1764046232780,-1000.0,0.00024154,2]
[394875154,1764046232790,-576.0,0.00024561,2]
[394875155,1764046232800,-1602.0,0.00024561,2]
[394875156,1764046232810,-818.0,0.00024561,2]
[394875157,1764046232820,-1192.0,0.00024561,2]
[394875158,1764046232828,-2715.0,0.00024561,2]
[394875159,1764046232839,-151.89822632,0.00024658,2]
[394875160,1764046232849,-150.0,0.00024658,2]
[394875161,1764046232860,-150.0,0.00024658,2]
[394875162,1764046232870,-274.89253593,0.00024658,2]
[394875163,1764046232879,-150.0,0.00024658,2]
[394875164,1764046232891,-150.0,0.00024658,2]
[394875165,1764046232901,-288.12557967,0.00024658,2]
[394875166,1764046232911,-254.37788025,0.00024658,2]
[394875167,1764046232923,-222.31104798,0.00024658,2]
[394875168,1764046232933,-150.0,0.00024658,2]
[394875169,1764046232943,-5000.0,0.000247,2]
[394875170,1764046232953,-212.40887324,0.000249,3]
[394875171,1764046232962,-166.66,0.00025144,30]
[394875172,1764046232971,-166.66,0.00025673,30]
[394875173,1764046232980,-1613.0,0.0002608,2]
[394875174,1764046232989,-166.66,0.00026202,30]
[394875175,1764046232999,-150.0,0.00026438,2]
[394875176,1764046233009,-166.66,0.00026732,30]
[394875177,1764046233018,-200.0,0.0002688,2]
[394875178,1764046233027,-225.82172397,0.00027074,2]
[394875179,1764046233036,-166.66,0.00027261,30]
[394875180,1764046233045,-500.0,0.00027397,5]
[394875181,1764046233055,-576.0,0.00027561,2]
[394875182,1764046233064,-1192.0,0.00027561,2]
[394875183,1764046233074,-2715.0,0.00027561,2]
[394875184,1764046233083,-166.66,0.0002779,30]
[394875185,1764046233095,-233.0,0.00028492,2]
[394875186,1764046233105,-160.96,0.00029175,15]
[394875187,1764046233115,-219.9373918,0.00029497,2]
[394875188,1764046233124,-225.82172397,0.00030034,15]
[394875189,1764046233134,-576.0,0.00030561,2]
[394875190,1764046233143,-1192.0,0.00030561,2]
[394875191,1764046233153,-2715.0,0.00030561,2]
[394875192,1764046233163,-160.98,0.00031032,15]
[394875193,1764046233173,-834.5,0.0003126,30]
[394875194,1764046233183,-1000.0,0.00032877,10]
[394875195,1764046233193,-1000.0,0.00032877,10]
[394875196,1764046233203,-1000.0,0.00032877,10]
[394875197,1764046233212,-730.05672982,0.00032877,10]
[394875200,1764046240300,-150.0,0.00017381,2]
[394875201,1764046240310,-561.0,0.00024561,2]
[394875202,1764046240319,-17.44789842,0.00027561,2]
[394875203,1764046240331,-543.55210158,0.00027561,2]
[394875204,1764046240340,-561.0,0.00030561,2]
[394875205,1764046240349,-269.94327018,0.00032877,10]
[394875206,1764046240358,-161.01,0.00032983,15]
[394875207,1764046240368,-225.82172397,0.00032994,15]
[394875208,1764046240376,-1000.0,0.00033113,4]
[394875209,1764046240386,-161.01,0.00033468,15]
[394875210,1764046240395,-576.0,0.00033561,2]
[394875211,1764046240403,-1192.0,0.00033561,2]
[394875212,1764046240412,-2715.0,0.00033561,2]
[394875213,1764046240421,-561.0,0.00033561,2]
[394875214,1764046240430,-91.31828985,0.00033953,15]
[394875303,1764046244239,-1149.8939041,0.00021561,2]
[394875304,1764046244251,-829.93042325,0.00021561,2]
[394875306,1764046244300,-465.50068337,0.00021561,2]
[394875314,1764046245313,-1844.40697459,0.00021561,2]
[394875317,1764046246304,-1809.8,0.00021561,2]
[394875319,1764046246492,-400.46801469,0.00021561,2]
[394875320,1764046246506,-3789.72511732,0.00024561,2]
[394875321,1764046246548,-993.0,0.00024561,2]
[394875343,1764046266165,300.0,0.00019174,119]
[394875344,1764046266262,300.0,0.00020996,119]
[394875345,1764046267360,2500.0,0.00020996,120]
[394875347,1764046414254,-169.366293,0.00015117,2]
[394875348,1764046414279,-177.93324074,0.00015117,2]
[394875349,1764046414307,-41752.70046626,0.00015217,2]
[394875351,1764046510449,-1244.69185443,0.00015117,2]
[394875352,1764046510473,-8755.30814557,0.00015217,2]
[394875356,1764046696921,-169.36629297,0.00015117,2]
[394875362,1764046897888,-166.697,0.00014913,2]
[394875363,1764046897919,-908.74,0.00014913,2]
[394875378,1764047061440,287.88088425,0.00015107,2]
[394875526,1764047404697,214.0,0.00015117,2]
[394875531,1764047432434,-374.4782,0.00015117,2]
[394875532,1764047432444,-2738.2818,0.00015117,2]
[394875533,1764047432488,-448.05563965,0.00015117,2]
[394875571,1764047438301,-6813.67256035,0.00015117,2]
[394875572,1764047438312,-250.0,0.00015162,2]
[394875573,1764047438322,-169.36629297,0.00015173,2]
[394875574,1764047438332,-1120.22266896,0.00015173,2]
[394875575,1764047438341,-180.16126704,0.00015191,2]
[394875576,1764047438351,-151.0,0.00015208,2]
[394875577,1764047438361,-151.0,0.00015208,2]
[394875578,1764047438371,-151.0,0.00015208,2]
[394875579,1764047438380,-151.0,0.00015208,2]
[394875580,1764047438390,-194.9656607,0.00015208,2]
[394875581,1764047438399,-491.01197112,0.00015216,2]
[394875582,1764047438411,-8.98802888,0.00015216,2]
[394875583,1764047438421,-319.3315703,0.000153,2]
[394875584,1764047438432,-180.6684297,0.000153,2]
[394875585,1764047438442,-456.8198268,0.000153,2]
[394875586,1764047438451,-326.6059435,0.000153,2]
[394875587,1764047438463,-173.3940565,0.000153,2]
[394875589,1764047438472,-334.77337403,0.00015848,2]
[394875591,1764047438481,-250.0,0.00016629,2]
[394875592,1764047438490,-300.0,0.00016629,2]
[394875594,1764047438499,-189.00249213,0.00016629,2]
[394875603,1764047440575,-110.99750787,0.00016629,2]
[394875604,1764047440585,-300.0,0.00016629,2]
[394875605,1764047440600,-130.75403648,0.00016629,2]
[394875606,1764047440612,-169.24596352,0.00016629,2]
[394875607,1764047440623,-300.0,0.00016629,2]
[394875608,1764047440633,-300.0,0.00016629,2]
[394875609,1764047440643,-150.99,0.00016728,2]
[394875610,1764047440653,-299.99,0.00016728,4]
[394875611,1764047440663,-250.0,0.00017,2]
[394875612,1764047440673,-150.0,0.00017287,2]
[394875613,1764047440683,-150.0,0.00017424,2]
[394875614,1764047440692,-628.82686053,0.0001814,2]
[394875632,1764047446748,-150.0,0.00017433,2]
[394875633,1764047446758,-491.39580843,0.0001814,2]
[394875634,1764047446768,-520.40150763,0.00019,2]
[394875635,1764047446778,-561.0,0.00019084,2]
[394875636,1764047446788,-2715.0,0.00019084,2]
[394875637,1764047446797,-6109.806,0.00019084,2]
[394875638,1764047446807,-168.0,0.00019979,2]
[394875639,1764047446816,-1120.22266896,0.00021106,2]
[394875640,1764047446825,-32986.4776341,0.00021235,2]
[394875641,1764047446835,-151.49375096,0.00021285,2]
[394875642,1764047446845,-576.0,0.00021561,2]
[394875643,1764047446854,-427.01065334,0.00022065,2]
[394875644,1764047446864,-230.144,0.00022084,2]
[394875645,1764047446877,-1008.938,0.00022084,2]
[394875646,1764047446887,-200.0,0.00023039,2]
[394875647,1764047446896,-7360.2780372,0.00023924,2]
[394875648,1764047446906,-177.93324074,0.00024036,2]
[394875649,1764047446918,-1011.88937135,0.00024073,2]
[394875657,1764047485096,535.21,0.00013699,2]
[394875659,1764047515773,-488.4632,0.00015017,2]
[394875766,1764047569607,500.0,0.00015117,2]
[394875771,1764047601368,1276.9467,0.00015017,2]
[394875772,1764047601775,172.97155935,0.00015017,2]
[394875773,1764047621363,163.219,0.00015117,2]
[394875782,1764047720067,171.73415546,0.00015017,2]
[394875801,1764047751995,1644.0645009,0.00015017,2]
[394875803,1764047802658,155.82558064,0.00015017,2]
[394875811,1764047844302,176.64,0.00012834,2]
[394875812,1764047975371,171.73415545,0.00015017,2]
[394875814,1764047988000,585.91130689,0.00015017,2]
[394875824,1764048002213,963.5777,0.00015017,2]
[394875827,1764048004811,214.0,0.00015117,2]
[394875831,1764048005418,5916.52260066,0.00015107,2]
[394875832,1764048005442,1983.05739934,0.00015107,2]
[394875833,1764048005618,7899.58,0.00015107,2]
[394875837,1764048015471,3547.21,0.00015107,2]
[394875839,1764048015716,3547.21,0.00015107,2]
[394875850,1764048026373,1000.0,0.00015017,2]
[394875855,1764048032229,1905.59,0.00015017,2]
[394875856,1764048032251,1828.9863,0.00015017,2]
[394875860,1764048044692,2500.0,0.00015017,2]
[394875861,1764048092794,166.697,0.00014815,2]
[394875862,1764048092828,726.992,0.00014815,2]
[394875863,1764048114771,225.21969723,0.000151,2]
[394875864,1764048172101,1000.0,0.00015017,2]
[394875867,1764048208823,10000.01,0.00015017,2]
[394875868,1764048208850,4523.4413,0.00015017,2]
[394875900,1764048631422,-1057.53415449,0.00015016,2]
[394875902,1764048631431,-212.0,0.00015016,2]
[394875904,1764048631440,-1751.02517492,0.00015017,2]
[394875906,1764048631449,-527.32017621,0.00015017,2]
[394875907,1764048631459,-50170.05,0.00015017,2]
[394875908,1764048631468,-300.0,0.00015115,2]
[394875909,1764048631478,-500.0,0.00015116,2]
[394875910,1764048631487,-195.80832757,0.00015117,2]
[394875911,1764048631496,-406.49495038,0.000159,2]
[394875912,1764048631506,-5000.00947982,0.000162,5]
[394875913,1764048631518,-195.0,0.00016518,2]
[394875923,1764048631679,-300.0,0.00016519,2]
[394875924,1764048631739,-300.0,0.00016519,2]
[394875925,1764048631748,-300.0,0.00016519,2]
[394875926,1764048631758,-300.0,0.00016519,2]
[394875927,1764048631767,-300.0,0.00016519,2]
[394875928,1764048631777,-250.0,0.00017,2]
[394875929,1764048631786,-21405.12526937,0.00017,2]
[394875930,1764048631797,-822.10562034,0.00017,2]
[394875931,1764048631826,-626.31575954,0.00017,2]
[394875932,1764048637384,-1141.37622715,0.00017,2]
[394875945,1764048639513,-97449.00295378,0.00017,2]
[394875948,1764048643639,-2134.55639322,0.00017,2]
[394875949,1764048643699,-747.83079455,0.00017,2]
[394875994,1764048715733,216.68239479,0.00015016,5]
[394876049,1764048760353,474.58815858,0.00015016,2]
[394876058,1764048772562,1575.92265741,0.00015016,2]
[394876110,1764048977599,-162.14205497,0.00014917,2]
[394876122,1764049148569,-427.12934274,0.00014917,2]
[394876146,1764049287779,-1786.21460934,0.00014917,2]
[394876150,1764049292817,581.594,0.00014717,2]
[394876151,1764049292856,166.69798424,0.00014717,2]
[394876160,1764049442429,-162.14205491,0.00014917,2]
[394876162,1764049532885,384.41640843,0.00014917,2]
[394876165,1764049648759,162.14205491,0.00014917,2]
[394876174,1764049827203,166.66,0.00014884,2]
[394876178,1764049831626,-1290.22953794,0.00014917,2]
[394876179,1764049831843,-4458.68756206,0.00014917,2]
[394876180,1764049831853,-4078.6325,0.00014917,2]
[394876181,1764049831863,-1630.70404262,0.00014917,2]
[394876182,1764049831875,-879.1401216,0.00014917,2]
[394876183,1764049831896,-2647.41013578,0.00014917,2]
[394876184,1764049831906,-500.0,0.00015008,2]
[394876185,1764049831916,-500.0,0.00015008,2]
[394876186,1764049831926,-500.0,0.00015008,2]
[394876187,1764049831935,-500.0,0.00015008,2]
[394876188,1764049831945,-500.0,0.00015008,2]
[394876189,1764049831955,-500.0,0.00015008,2]
[394876191,1764049831969,-500.0,0.00015008,2]
[394876193,1764049831979,-500.0,0.00015008,2]
[394876195,1764049831988,-534.58100527,0.00015008,2]
[394876197,1764049831998,-151.0,0.00015008,2]
[394876199,1764049832014,-151.0,0.00015008,2]
[394876201,1764049832024,-151.0,0.00015008,2]
[394876202,1764049832036,-151.0,0.00015008,2]
[394876203,1764049832046,-511.64747322,0.00015008,2]
[394876204,1764049832056,-151.0,0.00015008,2]
[394876205,1764049832066,-153.43164938,0.00015008,2]
[394876206,1764049832077,-151.0,0.00015013,2]
[394876207,1764049832087,-500.0,0.00015016,2]
[394876208,1764049832097,-500.0,0.00015016,2]
[394876209,1764049832106,-500.0,0.00015016,2]
[394876210,1764049832116,-500.0,0.00015016,2]
[394876211,1764049832127,-500.0,0.00015016,2]
[394876212,1764049832137,-507.55013453,0.00015016,2]
[394876213,1764049832147,-504.53940233,0.00015016,2]
[394876214,1764049832157,-500.0,0.00015016,2]
[394876215,1764049832171,-500.0,0.00015016,2]
[394876216,1764049832181,-500.0,0.00015016,2]
[394876217,1764049832191,-500.0,0.00015016,2]
[394876218,1764049832201,-500.0,0.00015016,2]
[394876219,1764049832211,-500.0,0.00015016,2]
[394876221,1764049832220,-448.22143672,0.00015016,2]
[394876222,1764049832230,-500.0,0.00015016,2]
[394876223,1764049832240,-281.28677284,0.00015016,2]
[394876224,1764049832249,-517.225,0.00015017,2]
[394876225,1764049832259,-151.0,0.00015063,2]
[394876226,1764049832269,-151.0,0.00015118,2]
[394876227,1764049832279,-166.66,0.00015197,2]
[394876228,1764049832288,-532.59620209,0.00015325,2]
[394876229,1764049832298,-166.66,0.00015511,2]
[394876230,1764049832307,-610.0,0.00015718,2]
[394876231,1764049832318,-166.66,0.00015824,2]
[394876232,1764049832327,-406.49495038,0.000159,2]
[394876233,1764049832337,-999.0,0.00015908,3]
[394876234,1764049832346,-166.66,0.00016137,2]
[394876235,1764049832356,-350.94427837,0.00016234,2]
[394876236,1764049832366,-425.0,0.00016234,2]
[394876237,1764049832376,-871.0,0.00016236,2]
[394876238,1764049832386,-295.0,0.00016267,2]
[394876239,1764049832395,-287.0,0.00016299,2]
[394876240,1764049832405,-541.0,0.00016325,2]
[394876241,1764049832414,-500.55073687,0.00016369,2]
[394876242,1764049832424,-500.0,0.00016369,2]
[394876243,1764049832434,-500.76126021,0.00016369,2]
[394876244,1764049832443,-590.67594096,0.00016369,2]
[394876245,1764049832453,-500.0,0.00016369,2]
[394876246,1764049832463,-1756.0,0.00016432,2]
[394876247,1764049832472,-485.0,0.00016432,2]
[394876248,1764049832482,-2182.53965979,0.00016438,2]
[394876249,1764049832494,-1254.41808677,0.00016438,2]
[394876250,1764049832510,-506.35225344,0.00016438,2]
[394876251,1764049832520,-166.66,0.00016451,2]
[394876252,1764049832529,-227.26576863,0.00016465,2]
[394876253,1764049837608,-725.73423137,0.00016465,2]
[394876254,1764049837617,-24.26576843,0.00016465,2]
[394876255,1764049837722,-399.73423157,0.00016465,2]
[394876256,1764049837732,-424.0,0.00016497,2]
[394876257,1764049837741,-640.91,0.0001656,2]
[394876258,1764049837750,-339.0,0.0001664,2]
[394876259,1764049837760,-359.0,0.00016673,2]
[394876260,1764049837769,-1071.60546969,0.0001669,2]
[394876261,1764049837781,-147.39453031,0.0001669,2]
[394876262,1764049837791,-150.0,0.00016702,2]
[394876263,1764049837801,-241.0,0.00016707,2]
[394876264,1764049837810,-162.0,0.00016724,2]
[394876265,1764049837819,-211.0,0.0001674,2]
[394876266,1764049837829,-166.66,0.0001676,2]
[394876267,1764049837838,-733.10546969,0.000169,2]
[394876268,1764049837854,-625.89475458,0.000169,2]
[394876297,1764049839710,-248.59292419,0.000169,2]
[394876298,1764049839720,-501.16644804,0.00016973,2]
[394876299,1764049839729,-162.83089668,0.00016983,2]
[394876300,1764049839738,-151.0,0.00016986,2]
[394876301,1764049839748,-153.108487,0.00016986,2]
[394876302,1764049839757,-153.270588,0.00016986,2]
[394876303,1764049839766,-151.0,0.00016986,2]
[394876304,1764049839776,-151.0,0.00016986,2]
[394876305,1764049839785,-151.0,0.00016986,2]
[394876306,1764049839795,-151.0,0.00016986,2]
[394876307,1764049839804,-153.498853,0.00016986,2]
[394876308,1764049839813,-155.026745,0.00016986,2]
[394876309,1764049839823,-151.0,0.00016986,2]
[394876310,1764049839832,-151.0,0.00016986,2]
[394876311,1764049839842,-22853.65,0.00016986,2]
[394876312,1764049839851,-500.0,0.00016999,2]
[394876313,1764049839861,-500.0,0.00016999,2]
[394876314,1764049839870,-515.32671866,0.00016999,2]
[394876315,1764049839879,-130883.25047793,0.00017,2]
[394876316,1764049839888,-2000.0,0.00017,2]
[394876317,1764049839898,-151.0,0.00017,2]
[394876318,1764049839907,-151.0,0.00017,2]
[394876319,1764049839917,-151.0,0.00017,2]
[394876320,1764049839926,-151.0,0.00017,2]
[394876321,1764049839935,-151.0,0.00017,2]
[394876322,1764049839944,-211.383602,0.00017,2]
[394876323,1764049839953,-163.270607,0.00017,2]
[394876324,1764049839962,-155.357388,0.00017,2]
[394876325,1764049839971,-176.64,0.00017112,2]
[394876326,1764049839980,-166.66,0.00017314,2]
[394876327,1764049839989,-150.0,0.00017446,2]
[394876328,1764049839998,-1210.76,0.00017456,2]
[394876329,1764049840010,-169.6547,0.0001756,2]
[394876330,1764049840019,-169.65471,0.0001768,2]
[394876331,1764049840028,-5366.76,0.00017774,2]
[394876332,1764049840038,-169.65471,0.0001781,2]
[394876333,1764049840047,-166.66,0.00017867,2]
[394876334,1764049840057,-384.41640838,0.00017912,2]
[394876335,1764049840066,-169.65471,0.0001793,2]
[394876337,1764049840075,-169.6547,0.0001806,2]
[394876338,1764049840084,-272.99,0.00018082,2]
[394876339,1764049840094,-151.590482,0.00018369,2]
[394876340,1764049840104,-151.0,0.00018413,2]
[394876341,1764049840113,-163.912612,0.00018413,2]
[394876342,1764049840122,-151.0,0.00018413,2]
[394876343,1764049840133,-151.0,0.00018413,2]
[394876344,1764049840141,-151.0,0.00018413,2]
[394876345,1764049840151,-36596.60026042,0.00018413,2]
[394876346,1764049840161,-166.66,0.0001842,2]
[394876347,1764049840170,-1538.16,0.00018533,2]
[394876348,1764049840180,-150.99,0.00018533,2]
[394876349,1764049840189,-7697.95,0.00018533,2]
[394876350,1764049840199,-7155.15,0.00018533,2]
[394876351,1764049840208,-2994.48,0.00018533,2]
[394876352,1764049840217,-272.99,0.0001876,2]
[394876353,1764049840227,-166.66,0.00018973,2]